bitfinex/quotes_ETHUSD_20240828
["timestamp","ask_amount","ask_price","bid_price","bid_amount"]
[1724858377892,4.02642,2483.6,2483.0,4.02736]
[1724858378096,4.02513,2484.4,2483.5,4.02647]
[1724858378330,4.02401,2485.1,2483.2,2.4818]
[1724858378566,4.02594,2483.9,2483.3,0.55]
[1724858378899,4.02508,2484.5,2483.9,4.0258]
[1724858379064,8.04944,2484.7,2484.0,4.02565]
[1724858379371,4.02517,2484.4,2484.1,2.3525]
[1724858379586,4.0253,2484.3,2484.1,2.3525]
[1724858379734,4.02483,2484.6,2484.1,2.3525]
[1724858380042,4.02389,2485.2,2484.1,2.3525]
[1724858380240,0.4200105,2485.6,2484.1,2.3525]
[1724858380241,4.02487,2484.6,2484.1,2.3525]
[1724858380442,0.4200105,2485.6,2484.1,2.3525]
[1724858380443,4.0242,2485.0,2484.2,0.55]
[1724858380652,4.0242,2485.0,2484.4,4.02507]
[1724858380980,4.0242,2485.0,2484.5,0.06617606]
[1724858381271,4.02415,2485.0,2484.7,2.3248]
[1724858381443,4.02355,2485.4,2484.7,2.3248]
[1724858381647,4.02321,2485.6,2484.7,2.3248]
[1724858381648,4.02446,2484.8,2484.7,2.3248]
[1724858382089,8.04892,2484.8,2484.7,2.3248]
[1724858382311,4.0254,2484.3,2483.9,2.3934]
[1724858382580,4.02501,2484.5,2483.9,2.3934]
[1724858382734,3.0,2485.1,2483.9,2.3934]
[1724858382934,4.02576,2484.0,2483.9,2.3934]
[1724858383566,4.02482,2484.6,2483.9,2.3934]
[1724858383567,4.02489,2484.6,2483.9,2.3934]
[1724858383773,8.04943,2484.7,2484.0,4.02564]
[1724858384075,0.4023,2485.8,2484.0,4.02564]
[1724858384076,4.02438,2484.9,2484.1,4.10601848]
[1724858384244,4.02364,2485.4,2484.4,2.4488]
[1724858384434,4.02433,2484.9,2484.4,2.4488]
[1724858384637,4.02341,2485.5,2484.4,2.4488]
[1724858384855,0.49002483,2486.0,2484.4,2.4488]
[1724858384856,4.02495,2484.5,2484.4,2.4488]
[1724858385404,4.02406,2485.1,2484.4,6.71876]
[1724858385689,4.02444,2484.9,2484.4,2.4488]
[1724858385890,4.02406,2485.1,2484.4,2.4488]
[1724858386202,4.51260483,2486.0,2484.4,2.4488]
[1724858386203,4.02393,2485.2,2484.4,2.4488]
[1724858386382,4.02412,2485.1,2484.4,6.47388]
[1724858386696,4.02367,2485.3,2484.6,4.02469]
[1724858386989,4.02367,2485.3,2484.4,2.52929783]
[1724858386990,4.02367,2485.3,2484.7,6.28211]
[1724858387213,4.02337,2485.5,2484.9,4.02419]
[1724858387488,4.02308,2485.7,2484.7,6.28208]
[1724858387489,4.02395,2485.2,2484.7,2.2575]
[1724858387690,0.49296276,2485.4,2484.7,2.2575]
[1724858387863,0.42000801,2485.7,2484.7,2.2575]
[1724858388202,4.02446,2484.8,2484.7,2.2575]
[1724858388700,4.02446,2484.8,2484.7,2.32243008]
[1724858388882,16.09784,2484.8,2484.7,0.06493008]
[1724858389195,16.09784,2484.8,2484.1,2.2575]
[1724858389196,4.02543,2484.3,2484.1,2.2575]
[1724858389384,4.02544,2484.2,2484.1,2.2575]
[1724858389580,4.02484,2484.6,2484.1,2.2575]
[1724858389581,4.0253,2484.3,2484.1,2.2575]
[1724858389794,0.01210566,2484.7,2484.1,2.2575]
[1724858389993,4.02486,2484.6,2484.2,0.06531433]
[1724858390218,4.02512,2484.4,2484.2,0.06531433]
[1724858390418,0.01210566,2484.7,2484.2,0.06531433]
[1724858390419,8.05054,2484.3,2484.2,0.06531433]
[1724858390567,4.02527,2484.3,2484.2,0.06531433]
[1724858390766,4.02504,2484.5,2484.2,0.06531433]
[1724858391015,0.01210566,2484.7,2484.2,0.06531433]
[1724858391315,4.02507,2484.5,2484.2,0.06531433]
[1724858391471,4.02527,2484.3,2484.2,0.06531433]
[1724858392309,4.02521,2484.4,2484.2,0.06531433]
[1724858392484,0.01210566,2484.7,2484.2,4.09070433]
[1724858392808,0.01210566,2484.7,2484.3,4.10574201]
[1724858392980,0.01210566,2484.7,2484.4,4.02508]
[1724858393181,0.01210566,2484.7,2484.5,4.02492]
[1724858393507,0.01210566,2484.7,2484.6,0.06500692]
[1724858393707,0.01210566,2484.7,2484.6,2.47320692]
[1724858394074,0.01210566,2484.7,2484.6,10.52278692]
[1724858394406,4.02256,2486.0,2484.6,10.52278692]
[1724858394407,4.02327,2485.6,2484.6,3.27052761]
[1724858394618,4.02327,2485.6,2485.1,2.3997]
[1724858394796,4.02294,2485.8,2485.1,6.42367]
[1724858395121,4.02328,2485.6,2485.2,0.0630529]
[1724858395427,0.49296276,2486.4,2485.4,4.02348]
[1724858395428,4.02261,2486.0,2485.4,4.02348]
[1724858395582,4.02199,2486.4,2485.6,4.02316]
[1724858395790,4.02238,2486.1,2485.5,2.46250315]
[1724858396002,4.02211,2486.3,2485.7,0.06264959]
[1724858396172,4.02211,2486.3,2485.6,0.06272637]
[1724858396371,4.02241,2486.1,2485.8,0.06257282]
[1724858396608,4.02211,2486.3,2485.8,0.06257282]
[1724858396812,4.02178,2486.5,2485.8,4.02272]
[1724858396980,4.02204,2486.3,2485.9,0.06249606]
[1724858397188,4.02247,2486.1,2485.9,0.06249606]
[1724858397440,8.04496,2486.1,2485.5,2.3997]
[1724858397610,0.48288313,2486.4,2485.5,2.3997]
[1724858397611,4.50480313,2486.4,2485.5,2.3997]
[1724858397941,4.0223,2486.2,2485.6,0.06272637]
[1724858398170,0.48288313,2487.0,2485.6,1.26128901]
[1724858398445,8.04602,2485.7,2485.6,0.06272637]
[1724858398750,4.02301,2485.7,2485.6,0.06272637]
[1724858399237,4.02378,2485.3,2485.0,2.3395]
[1724858399608,8.04686,2485.5,2485.1,0.06311033]
[1724858399921,4.02351,2485.4,2485.1,0.06311033]
[1724858400310,8.04764,2485.2,2485.1,0.06311033]
[1724858400747,4.0256,2484.1,2484.0,2.3382]
[1724858401248,4.02532,2484.3,2484.0,2.3382]
[1724858401470,4.02471,2484.7,2484.0,2.3382]
[1724858401615,4.02467,2484.7,2484.0,6.59764]
[1724858401812,7.02352,2485.4,2484.0,2.3382]
[1724858401813,4.0255,2484.2,2484.0,2.3382]
[1724858402050,4.02457,2484.8,2484.1,4.02558]
[1724858402209,4.02419,2485.0,2484.1,0.58525653]
[1724858402410,4.02436,2484.9,2484.4,2.2509]
[1724858402611,4.02419,2485.0,2484.4,2.2509]
[1724858402856,0.48288313,2486.0,2483.7,4.02623]
[1724858402857,4.02202,2486.4,2484.7,4.0245]
[1724858403150,0.48288313,2486.0,2484.8,2.2907]
[1724858403348,4.02381,2485.3,2484.8,2.34686799]
[1724858403725,4.02325,2485.6,2485.0,4.02407]
[1724858403926,4.02287,2485.8,2485.2,6.31448]
[1724858404316,0.05,2486.2,2485.3,0.05578393]
[1724858404516,12.07047,2485.4,2485.3,0.05578393]
[1724858404719,4.02556,2484.2,2483.9,2.2907]
[1724858404953,4.55637313,2485.4,2483.2,0.84733118]
[1724858404954,4.02617,2483.8,2483.2,0.84733118]
[1724858405160,4.02617,2483.8,2483.3,2.2407]
[1724858405654,4.02653,2483.6,2483.3,2.2407]
[1724858405859,4.02638,2483.7,2483.3,2.2407]
[1724858406417,4.02563,2484.1,2483.3,2.46477]
[1724858406612,4.0261,2483.8,2483.3,2.46477]
[1724858406844,4.02644,2483.6,2483.3,2.2407]
[1724858407054,8.05346,2483.4,2483.3,2.2407]
[1724858407527,4.02645,2483.6,2482.9,0.08054481]
[1724858407727,4.02561,2484.1,2482.8,4.02769]
[1724858407728,4.02665,2483.5,2482.8,4.02769]
[1724858407933,4.02665,2483.5,2482.9,0.805551]
[1724858408166,4.02595,2483.9,2482.8,2.2562]
[1724858408370,4.02754,2482.9,2482.8,2.2562]
[1724858408514,4.0282,2482.5,2482.1,2.2562]
[1724858408731,4.02713,2483.2,2482.0,0.0024475]
[1724858408732,4.02884,2482.1,2482.0,0.0024475]
[1724858409132,4.02859,2482.3,2482.0,0.0024475]
[1724858409332,4.02839,2482.4,2482.0,0.0024475]
[1724858409735,4.02832,2482.5,2482.0,0.0024475]
[1724858410048,8.05768,2482.1,2482.0,0.0024475]
[1724858410246,12.08652,2482.1,2482.0,0.0024475]
[1724858410547,12.08652,2482.1,2481.0,0.96780496]
[1724858410548,4.03047,2481.1,2481.0,0.96780496]
[1724858410763,4.02982,2481.5,2481.0,0.96780496]
[1724858411093,4.03016,2481.3,2481.0,1.02193291]
[1724858411768,3.0,2482.0,2481.0,1.02193291]
[1724858412073,4.03021,2481.3,2481.0,0.05412795]
[1724858412288,4.03047,2481.1,2480.7,0.00228353]
[1724858412501,0.1,2481.7,2480.7,0.00228353]
[1724858412502,4.03095,2480.8,2480.7,0.00228353]
[1724858412987,4.03095,2480.8,2480.7,0.05913086]
[1724858413139,4.03095,2480.8,2480.7,0.00228353]
[1724858413477,4.03095,2480.8,2479.6,2.4001]
[1724858413478,20.15475,2480.8,2479.6,2.4001]
[1724858413678,20.15475,2480.8,2479.1,2.4001]
[1724858413679,4.03228,2480.0,2479.1,2.4001]
[1724858413985,4.0326,2479.8,2479.2,0.05301833]
[1724858414132,3.0,2480.7,2479.2,0.05301833]
[1724858414133,4.03184,2480.3,2479.2,0.05301833]
[1724858414333,4.13093,2480.9,2479.2,0.05301833]
[1724858414334,4.03201,2480.2,2479.2,0.05301833]
[1724858414635,4.03145,2480.5,2479.1,2.4001]
[1724858414636,4.03292,2479.6,2479.1,2.4001]
[1724858414898,7.03212,2480.1,2479.1,2.4001]
[1724858414899,4.03275,2479.7,2479.1,2.4001]
[1724858415174,4.0327,2479.8,2479.1,2.4001]
[1724858415175,4.03263,2479.8,2479.2,0.05301833]
[1724858415376,3.0,2480.1,2478.6,0.1226329]
[1724858415377,8.06874,2478.7,2478.6,0.1226329]
[1724858416168,12.10311,2478.7,2478.6,0.1226329]
[1724858416335,15.10311,2478.7,2478.6,0.1226329]
[1724858416551,8.06874,2478.7,2478.6,0.1226329]
[1724858416762,12.10311,2478.7,2478.6,0.1226329]
[1724858417171,15.10311,2478.7,2478.6,2.9e-06]
[1724858417435,15.10311,2478.7,2477.9,8e-07]
[1724858417436,16.14204,2478.0,2477.9,8e-07]
[1724858417683,8.07102,2478.0,2477.9,8e-07]
[1724858417839,4.0336,2479.2,2477.9,8e-07]
[1724858418039,3.0,2479.1,2478.0,2.3423]
[1724858418342,4.03453,2478.7,2478.1,0.23423008]
[1724858418638,4.03289,2479.7,2478.9,2.3595]
[1724858418949,4.0323,2480.0,2478.9,2.3595]
[1724858419164,4.03325,2479.4,2478.9,2.3595]
[1724858419637,4.03296,2479.6,2478.9,2.3595]
[1724858419837,0.1,2481.1,2479.0,0.63067113]
[1724858419838,4.03237,2480.0,2479.0,0.63067113]
[1724858420058,4.13053,2481.1,2478.9,2.3595]
[1724858420059,4.03308,2479.5,2478.9,2.3595]
[1724858420398,4.03291,2479.6,2478.9,6.39346]
[1724858420602,0.39925223,2480.5,2478.9,2.3595]
[1724858420900,4.02934,2481.8,2479.8,2.4153]
[1724858421057,4.03059,2481.1,2479.9,0.24153]
[1724858421250,4.03059,2481.1,2479.8,2.4153]
[1724858421251,4.032,2480.2,2479.8,2.4153]
[1724858421462,4.03197,2480.2,2479.8,2.4153]
[1724858421755,4.03203,2480.2,2479.9,0.0497458]
[1724858421951,4.03212,2480.1,2479.9,0.0497458]
[1724858422193,4.03203,2480.2,2479.9,0.0497458]
[1724858422194,4.03225,2480.0,2479.9,0.0497458]
[1724858422384,8.0645,2480.0,2479.9,0.0497458]
[1724858422696,8.0645,2480.0,2479.8,2.4153]
[1724858422697,4.03225,2480.0,2479.8,2.4153]
[1724858422909,4.03013,2481.4,2479.9,0.55]
[1724858422910,4.03139,2480.6,2479.9,0.55]
[1724858423198,4.03105,2480.8,2480.0,4.03214]
[1724858423408,4.03115,2480.7,2480.0,4.78426184]
[1724858423555,4.03115,2480.7,2480.0,4.08447584]
[1724858423771,0.41950565,2481.7,2480.2,2.4022]
[1724858424088,4.03097,2480.8,2480.3,0.60174144]
[1724858424284,4.02978,2481.6,2480.3,0.05174144]
[1724858424467,4.0316,2480.4,2480.3,0.05174144]
[1724858424823,8.06529,2479.8,2479.7,2.4774]
[1724858424968,4.03229,2480.0,2479.7,2.4774]
[1724858425509,4.03111,2480.8,2479.7,2.4774]
[1724858425510,8.06516,2479.8,2479.7,2.4774]
[1724858425817,4.03258,2479.8,2479.7,2.4774]
[1724858425973,4.03251,2479.9,2479.7,2.4774]
[1724858426171,4.03215,2480.1,2479.7,2.4774]
[1724858426394,4.0318,2480.3,2479.7,2.4774]
[1724858426664,4.03148,2480.5,2479.7,2.4774]
[1724858426665,4.03195,2480.2,2479.7,2.4774]
[1724858426897,4.03236,2480.0,2479.7,2.4774]
[1724858427116,4.03244,2479.9,2479.7,2.4774]
[1724858427447,8.06516,2479.8,2479.7,2.4774]
[1724858427614,4.03258,2479.8,2479.7,2.4774]
[1724858427970,4.03277,2479.7,2478.6,2.3339]
[1724858428172,4.03437,2478.7,2478.6,2.3339]
[1724858428787,4.03407,2478.9,2478.6,2.3339]
[1724858428988,4.03357,2479.2,2478.6,2.3339]
[1724858429317,4.03411,2478.9,2478.6,2.3339]
[1724858429824,4.03379,2479.1,2478.6,2.3339]
[1724858430027,4.03348,2479.3,2478.6,2.3339]
[1724858430229,4.03437,2478.7,2478.6,2.3339]
[1724858430540,0.1,2479.9,2478.6,2.3339]
[1724858430541,4.03405,2478.9,2478.6,2.3339]
[1724858430718,4.03378,2479.1,2478.6,2.3339]
[1724858430908,4.03343,2479.3,2478.7,0.0541824]
[1724858431105,4.03204,2480.2,2478.6,2.3339]
[1724858431313,4.03274,2479.7,2478.7,0.05417591]
[1724858431509,8.06842,2478.8,2478.7,0.05417591]
[1724858431725,8.06874,2478.7,2478.6,2.3339]
[1724858432044,8.06991,2478.4,2478.0,2.4036]
[1724858432243,4.03531,2478.2,2478.0,2.4036]
[1724858432427,4.03383,2479.1,2478.0,2.4036]
[1724858432629,4.03481,2478.5,2478.1,0.10562561]
[1724858432937,4.03481,2478.5,2478.0,2.4036]
[1724858432938,4.03443,2478.7,2478.0,6.43911]
[1724858433092,3.0,2479.5,2478.0,6.43911]
[1724858433093,4.03415,2478.9,2478.1,0.64391108]
[1724858433292,4.03402,2479.0,2478.3,2.4568]
[1724858433497,4.03502,2478.3,2477.9,8e-07]
[1724858433738,4.03536,2478.1,2477.9,8e-07]
[1724858434242,4.03502,2478.3,2477.9,8e-07]
[1724858434442,4.03405,2478.9,2477.9,8e-07]
[1724858434443,4.03442,2478.7,2478.0,2.4568]
[1724858434633,4.03442,2478.7,2478.1,4.03523]
[1724858434830,4.03442,2478.7,2478.1,8.07047]
[1724858435032,4.03442,2478.7,2478.0,2.4568]
[1724858435232,4.03465,2478.6,2478.0,2.4568]
[1724858435433,4.03442,2478.7,2478.0,3.10603608]
[1724858435617,4.03391,2479.0,2478.2,2.3664]
[1724858435817,4.03268,2479.8,2478.2,2.3664]
[1724858435818,4.03416,2478.9,2478.2,6.40148]
[1724858436164,4.03436,2478.8,2478.2,6.40148]
[1724858436454,4.03439,2478.7,2478.2,2.3664]
[1724858436619,4.03423,2478.8,2478.2,6.40155]
[1724858436813,4.03352,2479.3,2478.2,2.3664]
[1724858437018,8.06925,2478.6,2478.2,2.3664]
[1724858437339,4.03459,2478.6,2478.2,2.3664]
[1724858438102,4.0336,2479.2,2478.2,2.3664]
[1724858438103,8.07004,2478.3,2478.2,2.3664]
[1724858438303,8.07102,2478.0,2477.9,8e-07]
[1724858438941,3.0,2478.7,2477.9,8e-07]
[1724858439151,3.0,2478.7,2474.7,0.82407657]
[1724858439152,0.49507413,2478.8,2475.3,4.03986]
[1724858439153,0.1,2476.3,2475.3,4.03986]
[1724858439352,0.1,2476.3,2474.3,2.4164]
[1724858439353,8.07688,2476.2,2476.1,2.9e-06]
[1724858439551,20.87792918,2476.2,2476.1,2.9e-06]
[1724858439717,16.15376,2476.2,2476.1,2.9e-06]
[1724858439926,8.07688,2476.2,2476.1,2.9e-06]
[1724858440235,4.03814,2476.4,2476.1,2.9e-06]
[1724858440438,4.03726,2477.0,2476.1,2.9e-06]
[1724858440439,4.0373,2477.0,2476.2,2.3664]
[1724858440607,4.03514,2478.3,2476.3,0.08075562]
[1724858440608,4.03652,2477.4,2476.3,0.08075562]
[1724858440808,4.03652,2477.4,2476.6,2.3664]
[1724858441044,4.03561,2478.0,2476.6,2.3664]
[1724858441045,4.03589,2477.8,2476.8,4.03743]
[1724858441307,4.03674,2477.3,2476.9,2.3664]
[1724858441513,4.03714,2477.0,2476.9,2.3664]
[1724858441907,0.60520214,2477.4,2476.2,2.4207]
[1724858441908,4.03759,2476.8,2476.2,2.4207]
[1724858442143,4.03735,2476.9,2476.3,0.34355999]
[1724858442328,4.03779,2476.6,2476.3,0.1014897]
[1724858442646,4.57126316,2477.8,2476.3,0.1014897]
[1724858442858,4.03524,2478.2,2476.6,2.4479]
[1724858442859,4.03748,2476.8,2476.6,2.4479]
[1724858443009,4.03763,2476.7,2476.6,2.4479]
[1724858443211,8.07526,2476.7,2476.6,2.4479]
[1724858443413,8.07688,2476.2,2476.1,2.4837029]
[1724858443853,4.03844,2476.2,2476.1,2.4837029]
[1724858444064,4.57234316,2477.1,2476.1,2.4837029]
[1724858444065,4.0378,2476.6,2476.1,2.4837029]
[1724858444351,4.03812,2476.4,2476.1,2.4837029]
[1724858444553,4.03812,2476.4,2476.1,2.9e-06]
[1724858444554,12.11532,2476.2,2476.1,2.9e-06]
[1724858444722,4.03829,2476.3,2476.1,2.9e-06]
[1724858445114,4.03799,2476.5,2476.1,2.9e-06]
[1724858445346,4.0371,2477.1,2476.2,2.3048]
[1724858445648,4.03732,2476.9,2476.2,2.3048]
[1724858445835,4.03808,2476.5,2476.2,2.3048]
[1724858446070,4.03702,2477.1,2476.2,2.3048]
[1724858446234,4.03527,2478.2,2476.3,0.31123846]
[1724858446235,4.0366,2477.4,2476.3,0.31123846]
[1724858446570,4.03618,2477.6,2476.7,4.03762]
[1724858446728,4.03618,2477.6,2476.6,2.3048]
[1724858446729,4.08318,2479.5,2476.8,2.3048]
[1724858446730,4.03661,2477.4,2476.8,2.3048]
[1724858446938,4.03711,2477.1,2476.8,2.3048]
[1724858447127,8.0746,2476.9,2476.8,2.3048]
[1724858447333,4.03792,2476.6,2476.2,2.3048]
[1724858447637,4.03693,2477.2,2476.2,2.3048]
[1724858447816,4.03748,2476.8,2476.2,2.53528029]
[1724858448016,4.0365,2477.4,2476.2,2.53528029]
[1724858448017,4.03808,2476.5,2476.2,2.53528029]
[1724858448254,4.0365,2477.4,2476.3,0.1014897]
[1724858448255,4.03765,2476.7,2476.3,0.1014897]
[1724858448464,4.03737,2476.9,2476.3,0.1014897]
[1724858448766,4.03719,2477.0,2476.3,0.1014897]
[1724858448919,4.03684,2477.2,2476.3,0.1014897]
[1724858448920,4.03698,2477.1,2476.3,0.1014897]
[1724858449124,4.0364,2477.5,2476.6,2.294]
[1724858449384,4.03424,2478.8,2476.5,4.03794]
[1724858449385,4.0357,2477.9,2477.1,4.03697]
[1724858449518,4.03439,2478.7,2477.2,2.294]
[1724858449724,4.03579,2477.9,2477.3,0.10069586]
[1724858450018,4.03401,2479.0,2477.3,4.21791296]
[1724858450250,0.4202456,2479.2,2477.8,2.3547]
[1724858450251,4.03457,2478.6,2477.8,2.3547]
[1724858450431,4.03457,2478.6,2477.8,2.43540585]
[1724858450733,4.03455,2478.6,2478.0,2.3993]
[1724858450934,4.03416,2478.9,2478.1,0.09949777]
[1724858451149,4.03373,2479.1,2478.2,6.46684]
[1724858451363,4.03292,2479.6,2478.2,6.46684]
[1724858451364,4.03345,2479.3,2478.3,0.55]
[1724858451659,4.03295,2479.6,2478.3,0.83016677]
[1724858451660,4.03385,2479.1,2478.3,0.83016677]
[1724858451865,4.03433,2478.8,2478.3,0.0993133]
[1724858452069,4.03486,2478.4,2478.3,0.0993133]
[1724858452222,0.42020246,2479.7,2478.2,2.4317]
[1724858452223,4.03481,2478.5,2478.2,2.4317]
[1724858452421,4.03327,2479.4,2478.2,2.4317]
[1724858452422,4.44779399,2479.4,2478.2,2.4317]
[1724858452627,4.03502,2478.3,2478.2,2.4317]
[1724858452922,8.07004,2478.3,2478.2,2.4317]
[1724858453326,4.03475,2478.5,2478.2,2.4317]
[1724858453635,4.03437,2478.7,2478.2,2.4317]
[1724858453636,4.03458,2478.6,2478.2,2.4317]
[1724858453870,4.03502,2478.3,2478.2,2.4317]
[1724858455800,4.03472,2478.5,2478.2,2.4317]
[1724858456298,4.03412,2478.9,2478.2,2.4317]
[1724858456665,4.03325,2479.4,2478.2,2.4317]
[1724858456666,4.03346,2479.3,2478.5,2.4334]
[1724858456882,4.03346,2479.3,2478.6,0.08068116]
[1724858457067,4.03308,2479.5,2478.6,0.73555828]
[1724858457409,4.03291,2479.6,2478.9,2.3512]
[1724858457553,4.03279,2479.7,2479.0,0.08067003]
[1724858457755,4.03214,2480.1,2479.2,4.0334]
[1724858458075,4.0321,2480.1,2479.4,4.03319]
[1724858458275,4.0321,2480.1,2479.5,0.08065081]
[1724858458477,4.03182,2480.3,2479.6,2.3512]
[1724858458805,4.0315,2480.5,2479.7,2.3512]
[1724858459107,0.0233446,2480.0,2479.8,0.08064144]
[1724858459456,0.0233446,2480.0,2479.7,7.58040363]
[1724858459662,0.0233446,2480.0,2479.9,2.3512]
[1724858459856,4.0555946,2480.0,2479.9,2.3512]
[1724858460055,4.0555946,2480.0,2478.2,4.08515]
[1724858460056,4.03307,2479.5,2479.4,2.3512]
[1724858460402,8.06614,2479.5,2479.4,2.3512]
[1724858460609,4.03307,2479.5,2479.4,2.3512]
[1724858460757,8.06614,2479.5,2479.4,2.3512]
[1724858460955,8.06614,2479.5,2477.7,4.03584]
[1724858460956,4.03311,2479.5,2477.7,2.4144]
[1724858461157,4.03447,2478.7,2477.8,0.09382756]
[1724858461383,4.03567,2477.9,2477.8,0.09382756]
[1724858461620,4.03563,2478.0,2477.8,0.09382756]
[1724858461820,4.03429,2478.8,2477.7,2.4144]
[1724858462025,4.03583,2477.8,2477.7,2.4144]
[1724858462226,4.03564,2478.0,2477.7,2.4144]
[1724858462424,4.03501,2478.4,2477.8,0.24144]
[1724858462728,4.03499,2478.4,2477.8,0.09382756]
[1724858462897,4.03535,2478.1,2477.8,0.09382756]
[1724858463298,4.03535,2478.1,2477.7,2.4144]
[1724858463505,4.03519,2478.2,2477.7,2.4144]
[1724858463686,4.03481,2478.5,2477.8,0.41597307]
[1724858463924,4.03546,2478.1,2477.8,0.09382756]
[1724858464119,4.03408,2478.9,2477.8,0.09382756]
[1724858464300,4.0351,2478.3,2477.7,2.4144]
[1724858464481,4.0351,2478.3,2477.9,0.09374824]
[1724858464690,4.03476,2478.5,2477.8,0.17453871]
[1724858464920,4.03384,2479.1,2478.1,2.2604]
[1724858465088,4.03384,2479.1,2478.3,6.29527]
[1724858465285,4.03176,2480.4,2478.3,6.29527]
[1724858465286,4.03423,2478.8,2478.3,2.2604]
[1724858465499,4.03429,2478.8,2478.4,0.09364845]
[1724858465828,0.05,2480.7,2478.4,0.09364845]
[1724858465829,3.39149033,2481.4,2478.5,6.29508]
[1724858466131,4.03243,2479.9,2478.8,2.2604]
[1724858466346,4.03243,2479.9,2479.2,2.2604]
[1724858466491,4.03339,2479.3,2479.2,2.2604]
[1724858466818,4.0556046,2480.0,2479.2,2.2604]
[1724858466819,4.03285,2479.7,2479.2,2.2604]
[1724858466987,4.0556946,2480.0,2479.2,2.2604]
[1724858467193,4.03339,2479.3,2479.2,2.2604]
[1724858467616,4.03333,2479.4,2479.2,2.2604]
[1724858467832,4.03295,2479.6,2479.2,2.2604]
[1724858468001,4.03249,2479.9,2479.2,2.2604]
[1724858468002,4.03273,2479.8,2479.2,2.48644]
[1724858468332,4.03249,2479.9,2479.3,0.08066307]
[1724858468518,4.03249,2479.9,2479.3,0.25671031]
[1724858468844,0.0233446,2480.0,2479.3,0.25671031]
[1724858468994,0.0233446,2480.0,2479.2,2.2604]
[1724858469196,4.03319,2479.5,2479.2,2.2604]
[1724858469492,4.0329,2479.7,2479.2,2.2604]
[1724858469687,4.03292,2479.6,2479.2,2.2604]
[1724858470053,4.0328,2479.7,2479.2,2.49450603]
[1724858470236,0.0233446,2480.0,2479.2,2.2604]
[1724858470407,4.03297,2479.6,2479.2,2.2604]
[1724858470802,4.0326,2479.8,2479.2,2.2604]
[1724858471029,4.03243,2479.9,2479.3,0.22604]
[1724858471208,4.0556146,2480.0,2479.3,0.30669936]
[1724858471388,4.0556146,2480.0,2479.3,0.22604]
[1724858471893,0.0233446,2480.0,2479.7,4.03261]
[1724858472119,0.0233446,2480.0,2479.8,0.640261]
[1724858472335,0.0233446,2480.0,2479.6,2.37]
[1724858472819,0.0233446,2480.0,2479.6,6.4028]
[1724858473021,0.0233446,2480.0,2479.7,0.55]
[1724858473229,0.0233446,2480.0,2479.8,4.03247]
[1724858473517,4.03101,2480.8,2480.0,6.47783]
[1724858473743,4.03089,2480.9,2480.0,2.4457]
[1724858473942,0.38794982,2481.7,2480.0,2.4457]
[1724858473943,4.03002,2481.4,2480.1,0.55]
[1724858474258,4.0309,2480.9,2480.3,2.2539]
[1724858474470,4.4495665,2481.8,2480.4,4.25698]
[1724858474471,4.03041,2481.2,2480.4,4.25698]
[1724858474623,4.03041,2481.2,2480.4,4.88747741]
[1724858474821,4.03004,2481.4,2480.5,2.2539]
[1724858475120,8.05952,2481.6,2480.6,4.11177219]
[1724858475434,8.05952,2481.6,2480.8,4.03082]
[1724858475435,4.02974,2481.6,2480.8,4.03082]
[1724858475630,4.02974,2481.6,2481.0,4.03061]
[1724858475864,0.4200716,2482.2,2480.9,0.76407514]
[1724858475865,4.02876,2482.2,2481.3,2.2539]
[1724858476064,0.42378316,2482.7,2481.3,2.2539]
[1724858476252,4.02924,2481.9,2481.3,2.2539]
[1724858476471,4.02828,2482.5,2481.5,2.2539]
[1724858476655,4.02814,2482.6,2481.9,2.2539]
[1724858476983,4.02814,2482.6,2482.0,0.08056917]
[1724858477189,4.02776,2482.8,2482.0,0.08056917]
[1724858477190,4.02776,2482.8,2482.1,2.2539]
[1724858477355,4.02776,2482.8,2482.2,0.08056407]
[1724858477684,4.02816,2482.6,2482.3,0.08633747]
[1724858477887,0.54250301,2483.6,2482.3,0.08633747]
[1724858477888,4.02835,2482.4,2482.3,0.08633747]
[1724858478191,0.54250301,2483.6,2482.3,0.08633104]
[1724858478356,8.0567,2482.4,2482.3,0.08633104]
[1724858478879,4.02868,2482.2,2482.1,2.2539]
[1724858479086,4.02942,2481.8,2481.5,2.3914]
[1724858479240,4.02918,2481.9,2481.5,2.3914]
[1724858479437,4.02874,2482.2,2481.6,0.08058442]
[1724858479638,4.02902,2482.0,2481.6,0.08058442]
[1724858479841,4.02841,2482.4,2481.6,0.32778286]
[1724858480043,4.02813,2482.6,2481.7,2.9649]
[1724858480242,0.95370082,2483.1,2481.7,2.9649]
[1724858480482,4.98182082,2482.6,2481.7,2.49547268]
[1724858480693,4.02902,2482.0,2481.7,2.4149]
[1724858480899,4.02917,2481.9,2481.7,2.4149]
[1724858481186,4.02902,2482.0,2481.7,2.4149]
[1724858481343,4.02869,2482.2,2481.8,0.08057855]
[1724858481545,4.02842,2482.4,2481.8,0.08057855]
[1724858481886,7.02756,2482.9,2481.8,0.08057855]
[1724858481887,4.02775,2482.8,2482.0,2.4619]
[1724858482071,4.02711,2483.2,2482.2,2.4619]
[1724858482388,4.02711,2483.2,2482.7,2.3284]
[1724858482389,0.60733459,2483.2,2482.7,2.3284]
[1724858482698,0.60733459,2483.2,2482.9,2.3284]
[1724858482896,4.14909,2483.6,2483.0,0.08053475]
[1724858483192,4.14909,2483.6,2483.0,0.63053475]
[1724858483372,4.14909,2483.6,2483.0,0.55]
[1724858483373,4.02687,2483.4,2483.0,0.55]
[1724858483885,0.12263,2483.6,2483.0,0.55]
[1724858483886,0.12263,2483.6,2483.2,2.416]
[1724858484189,0.12263,2483.6,2483.4,2.416]
[1724858484346,4.02657,2483.5,2483.4,2.416]
[1724858484545,8.05314,2483.5,2483.4,2.416]
[1724858485283,4.0276,2482.9,2482.2,2.3996]